Cogmind - Beta 14 @@@ ROGUE MODE // 2024.12.01 @ 16:42:59 Player: certified.possum Result: Destroyed by G-34 Mercenary with Small Laser Performance ------------- Evolutions (0) 0 Regions Visited (1) 200 Robots Destroyed (4) 20 Value Destroyed (108) 108 Prototype IDs (0) 0 Alien Tech Used (0) 0 Bonus (0) 0 TOTAL SCORE: 328 Bonus ------- None Cogmind --------- Core Integrity 0/250 Matter 300/300 Energy 155/160 System Corruption 0% Temperature Cool (6) Movement Core (150) Ox2 Location -10/Materials Parts ------- > --- POWER (1) -------- Light Nuclear Core > --- PROPULSION (2) --- (None) > --- UTILITY (2) ------ (None) > --- WEAPON (2) ------- Mace > --- INVENTORY (5) ---- Improved Hover Unit Light Assault Rifle Peak State ------------ > --- POWER ------------ Ion Engine > --- PROPULSION ------- Improved Hover Unit Improved Hover Unit > --- UTILITY ---------- Hardened Light Armor Plating Hardened Light Armor Plating > --- WEAPON ----------- Light Assault Rifle Mace > --- INVENTORY -------- Light Ion Engine Wheel Wheel Assault Rifle Light Assault Rifle [Rating: 12] Favorites ----------- Power Ion Engine Engine Ion Engine Power Core Light Nuclear Core Propulsion Improved Hover Unit Wheel Wheel Hover Unit Improved Hover Unit Flight Unit Flight Unit Utility Hardened Light Armor Plating Storage Small Storage Unit Protection Hardened Light Armor Plating Weapon Light Assault Rifle Ballistic Gun Light Assault Rifle Impact Weapon Mace Build | -11 -10 ------- Run | Yrd Mat Slots Evolved . | . . Power . | . . Propulsion . | . . Utility . | . . Weapon . | . . Parts Attached 19 | 7 12 Power 3 | . 3 Engine 2 | . 2 Core 1 | . 1 Reactor . | . . Propulsion 8 | 2 6 Treads . | . . Leg . | . . Wheel 2 | 2 . Hover 4 | . 4 Flight 2 | . 2 Utility 3 | 1 2 Device . | . . Storage 1 | 1 . Processor . | . . Hackware . | . . Protection 2 | . 2 Artifact . | . . Weapon 5 | 4 1 Energy Gun . | . . Energy Cannon . | . . Ballistic Gun 4 | 4 . Ballistic Cannon . | . . Launcher . | . . Special Weapon . | . . Impact Weapon 1 | . 1 Slashing Weapon . | . . Piercing Weapon . | . . Special Melee Weapon . | . . Unidentified Prototypes . | . . Parts Lost 7 | . 7 Power 2 | . 2 Propulsion 2 | . 2 Utility 2 | . 2 Weapon 1 | . 1 Highest Loss Streak 7 | . 7 To Critical Strikes . | . . Average Slot Usage (%) 91 | . 91 Engine 13 | . 13 Wheel 7 | . 7 Hover 20 | . 20 Storage 3 | . 3 Protection 18 | . 18 Ballistic Gun 16 | . 16 Impact Weapon 10 | . 10 Peak Build Rating 12 | 5 12 Average Rating 9 | 3 10 On Entrance 2 | . 5 Naked Turns . | . . Heaviest Build 18 | 8 18 Greatest Support 20 | 20 20 Greatest Overweight (x) 1 | . 1 Average Overweight (x) . | . . Largest Inventory Capacity 8 | 8 8 Average Capacity 5 | 7 5 Most Carried 6 | 5 6 Average Carried 3 | 3 3 Final Capacity 8 | 8 5 Final Carried 3 | 3 2 Class Distribution -------------------- 100% | Mutant Dominant Class ---------------- Mutant | -10/Materials Resources | -11 -10 ----------- Run | Yrd Mat Matter Collected 393 | 278 115 Remotely . | . . Salvage Created 108 | . 108 Parts 3 | . 3 Haulers Intercepted . | . . Recyclers Shooed 1 | . 1 Parts Field Recycled . | . . Retrieved Matter . | . . Parts Self-Destructed . | . . Prevented . | . . Kills | -11 -10 ------- Run | Yrd Mat Combat Hostiles Destroyed 2 | . 2 Melee 2 | . 2 Classes Destroyed 3 | . 3 Worker 1 | . 1 Watcher 1 | . 1 Grunt 2 | . 2 Best Kill Streak 2 | . 2 Combat Bots Only 1 | . 1 Max Kills in Single Turn 1 | . 1 Gunslinging . | . . Exploded . | . . Melee 1 | . 1 Uniques/NPCs Destroyed . | . . Combat | -11 -10 -------- Run | Yrd Mat Hostile Shots Fired 99 | . 99 Missed 21 | . 21 Damage Taken 1006 | . 1006 Core 252 | . 252 Absorbed by Shields . | . . Core Remaining (%) 100 | 100 . Volleys Fired 16 | 2 14 Largest 2 | 2 2 Hottest 40 | 40 40 Shots Fired 20 | 4 16 Gun 20 | 4 16 Cannon . | . . Launcher . | . . Special . | . . Kinetic 20 | 4 16 Thermal . | . . Explosive . | . . Electromagnetic . | . . Robot Hit Streak 6 | 1 6 Robot Miss Streak 5 | 2 5 Penetration Max . | . . Secondary Targets . | . . Shots Hit Robots 24 | 2 22 Core Hits 3 | 1 2 Critical Kills . | . . Critical Parts Destroyed 1 | . 1 Critical Strikes 1 | . 1 Smash 1 | . 1 Melee Attacks 18 | . 18 Impact 18 | . 18 Slashing . | . . Piercing . | . . Sneak Attacks 2 | . 2 Combat Hostiles . | . . Follow-up Attacks . | . . Damage Inflicted 610 | 24 586 Guns 81 | 24 57 Cannons . | . . Explosions . | . . Melee 529 | . 529 Ramming . | . . Kinetic 81 | 24 57 Thermal . | . . Explosive . | . . Electromagnetic . | . . Impact 529 | . 529 Slashing . | . . Piercing . | . . Highest Corruption . | . . Average Corruption . | . . Corruption Purged . | . . Corruption Blocked . | . . Overload Shots . | . . Overflow Damage 89 | . 89 Projectiles . | . . Explosions . | . . Melee 89 | . 89 Knockbacks 3 | . 3 Impact 3 | . 3 Kinetic . | . . Secondary . | . . Self-Inflicted Damage . | . . Shots . | . . Rammed . | . . Targets Rammed . | . . Kicked . | . . Crushed . | . . Highest Temperature 172 | . 172 Average Temperature 74 | . 74 Received Heat Transfer 576 | . 576 Siege Activations . | . . Robots Corrupted 1 | . 1 Combat Hostiles . | . . Parts Fried 2 | . 2 Impact Corruptions 4 | . 4 Robots Melted . | . . Combat Hostiles . | . . Parts Melted . | . . Heat Transferred . | . . Parts Sabotaged . | . . Parts Stolen . | . . Parts Stripped . | . . Power Chain Reactions . | . . Alert | -11 -10 ------- Run | Yrd Mat Peak Influence 77 | . 77 Initial . | . . Average 31 | . 36 Maximum Alert Level . | . . Low Security (%) 100 | 100 100 Level 1 . | . . Level 2 . | . . Level 3 . | . . Level 4 . | . . Level 5 . | . . High Security . | . . Max Security . | . . Squads Dispatched 1 | . 1 Investigation . | . . Extermination . | . . Reinforcement 1 | . 1 Assault . | . . Garrison . | . . Intercept . | . . Searches Triggered . | . . Construction Impeded . | . . Haulers Reinforced . | . . Active Scanning Responses . | . . Cargo Convoy Interrupts . | . . Stealth | -11 -10 --------- Run | Yrd Mat Distress Signals 1 | . 1 Communications Jammed . | . . Distress Signals . | . . Times Spotted 8 | . 8 Peak Tracking Total 6 | . 6 Tactical Retreats . | . . Traps | -11 -10 ------- Run | Yrd Mat Traps Triggered . | . . Indirectly . | . . Trap Hack Attempts . | . . Triggered . | . . Disarmed . | . . Reprogrammed . | . . Reused . | . . Traps Extracted . | . . Installed . | . . Triggered . | . . Machines | -11 -10 ---------- Run | Yrd Mat Machines Disabled 1 | . 1 Max in Single Turn 1 | . 1 Machines Repaired . | . . Machines Dismantled . | . . Machines Sabotaged . | . . Overloaded Fab Kills . | . . Hacking | -11 -10 --------- Run | Yrd Mat Machines Accessed 1 | . 1 Terminals 1 | . 1 Fabricators . | . . Repair Stations . | . . Recycling Units . | . . Scanalyzers . | . . Garrison Access . | . . Total Hacks 3 | . 3 Successful 2 | . 2 Failed 1 | . 1 Catastrophic . | . . Database Lockouts . | . . Manual . | . . Terminals 3 | . 3 Fabricators . | . . Repair Stations . | . . Recycling Units . | . . Scanalyzers . | . . Garrison Access . | . . Terminal Hacks 2 | . 2 Record 1 | . 1 Locate Traps 1 | . 1 Fabricator Hacks . | . . Repair Station Hacks . | . . Recycling Unit Hacks . | . . Scanalyzer . | . . Garrison Access Hacks . | . . Unauthorized Hacks . | . . Terminals . | . . Fabricators . | . . Repair Stations . | . . Recycling Units . | . . Scanalyzers . | . . Garrison Access . | . . Data Cores Recovered . | . . Used . | . . Hacking Detections . | . . Full Trace Events . | . . Feedback Events . | . . Feedback Blocked . | . . Robot Schematics Acquired . | . . Robots Built . | . . Authchips . | . . Time . | . . Total Robot Build Rating . | . . Part Schematics Acquired . | . . Parts Built . | . . Authchips . | . . Time . | . . Total Part Build Rating . | . . Parts Repaired . | . . Time . | . . Parts Recycled . | . . Recycled Matter . | . . Retrieved Matter . | . . Retrieved Components . | . . Parts Scanalyzed . | . . Part Schematics Acquired . | . . Parts Damaged . | . . Bothacking | -11 -10 ------------ Run | Yrd Mat Used RIF Installer . | . . Robots Hacked . | . . Non-combat . | . . Combat . | . . Robot Hacks Applied . | . . Relay Couplers Released . | . . Fabnet Peak Effective % . | . . Robots Rewired . | . . Allies Hacked . | . . Hacks Repelled . | . . Allies | -11 -10 -------- Run | Yrd Mat Total Allies . | . . Largest Group . | . . Highest-Rated Group . | . . Highest-Rated Ally . | . . Total Orders . | . . Ally Attacks . | . . Total Damage . | . . Kills . | . . Allies Corrupted . | . . Allies Melted . | . . Intel | -11 -10 ------- Run | Yrd Mat Robot Analysis Total . | . . Derelict Logs Recovered . | . . Drone Launches . | . . Drone Recoveries . | . . Exploration | -11 -10 ------------- Run | Yrd Mat Turns Passed 461 | 64 397 Spaces Moved 355 | 61 294 Core 22 | 22 . Treads . | . . Legs . | . . Wheels 151 | 39 112 Hover 182 | . 182 Flight . | . . Fastest Speed 50 | 50 56 Average Speed 93 | 69 99 Slowest Speed 116 | 80 116 Overloaded Moves . | . . Propulsion Burnouts . | . . Robots Hopped . | . . Cave-ins Triggered . | . . Exploration Rate (%) 20 | 4 37 Regions Visited 1 Branch Regions . Pre-discovered Areas . | . . Known Exits Taken . | . . Unknown Exits Taken 1 | 1 . Scrap Searched . | . . Spaces Dug . | . . Terrain Destroyed . | . . Melee . | . . Projectile . | . . AOE . | . . Terrain Rammed . | . . Walls Destroyed . | . . Machines Disabled . | . . Actions | -11 -10 --------- Run | Yrd Mat Total 435 | 78 357 Wait 1 | . 1 Move 354 | 60 294 Hop . | . . Pick Up 18 | 8 10 Fast Attach 1 | . 1 Attach 10 | 6 4 Detach 1 | 1 . Swap 8 | 1 7 Drop 8 | . 8 Fire 16 | 2 14 Melee 18 | . 18 Ram . | . . Kick . | . . Crush . | . . Escape Stasis . | . . Rewire . | . . Trap . | . . Miscellaneous . | . . Route ------- -11/Scrapyard -10/Materials (discovered 1 exit: [*Min]) History --------- Turn | Location | Event 7 | -11/Scrapyard | Discovered new exit (range 15) 65 | -11/Scrapyard | Entered Materials 291 | -10/Materials | Discovered new exit (range 14) 311 | -10/Materials | Build established: Mutant 427 | -10/Materials | Core integrity fell below 50% 455 | -10/Materials | Core integrity fell below 20% 462 | -10/Materials | Destroyed by G-34 Mercenary with Small Laser Last Messages --------------- G-47 Trooper destroyed. Hrd. Light Armor Plating destroyed. Acquired Lgt. Nuclear Core. K-01 Serf collects debris. Acquired 32 matter. Sneak attack on K-01 Serf. K-01 Serf suffers critical hit (Smash). Destroyed Wheel. Destroyed Med. Matter Pod. K-01 Serf system corrupted by crushing effect. K-01 Serf destroyed. K-01 Serf collects debris. Acquired 8 matter. K-01 Serf collects debris. Hrd. Light Armor Plating destroyed. K-01 Serf collects debris. Ion Engine destroyed. G-47 Trooper knocked back. Imp. Hover Unit destroyed. Map ----- +----------------------------------------------------+ | ?????????????????????????????????????????????????? | | ?????????????????????????????????????????????????? | | ???????????????????????????????????????#####?????? | | ??????????????????????????????????????##"""##????? | | ?????????????????????????????????????##"!!!"##???? | | ?????????????????????????????????????#"" ""#???? | | ?????????????????????????????????????# #???? | | ?????????????????????????????????????# < #???? | | ?????????????????????????? ????????# #???? | | ????????????????????????# ????????# #???? | | ????????????????????????# ?????????# #????? | | ????????????????????????# #??######## #####?? | | ????????????????????????# #??#% == # [[#?? | | ????????????????????????# #??# == + [[#?? | | ????????????????????????# #??# === # //#?? | | ????????????????#+##+#### #??# # //#?? | | ????????????????# #??# # //#?? | | ????????????????# #??# # //#?? | | ????????????????# #??######## ####### | | ????????????????# "" #?????????# ## "T" | | ????????????????# "" #?######### ## | | ??????" ???????# """ T" ### # # | | ??????" ##### """ "" + # T" # | | ?????"" """ g "" ### ! "" # " + | | ???? w g #?# Y" # # """ | | ???? @ g #?# "" # # """ | | ????????# #####+###+#?# * ## ## """ | | ????????# # ] %#?######+## ## | | ????????# """ ?# ###### ## """ | | ????????# """ ?# + + """ | | ????????????""" ??# ###### ## """ | | ??????????? ??+ """ ###### ### | | ??????????? ???# """ !! ## ! "" #?###### | | ??????????######???# """ !! ## ! """ ######## | | ???????????????????# ##// """ # | | ???????????????????############ / """ # """"" | | ??????????????????????????????# # """"" | | ??????????????????????????????#= # """"" | | ??????????????????????????????##### """ # """"" | | ??????????????????????????????????# """ # """"" | | ??????????????????????????????????# """ + """"" | | ??????????????????????????????????# """ # """"" | | ??????????????????????????????????# # | | ?????????????????????????????????## ######## | | ?????????????????????????????????# """ #?????? | | ?????????????????????????????????# """ #?????? | | ???????????????????????????####### """ #?????? | | ???????????????????????????#^^ # """ #?????? | | ???????????????????????????#^""" # #?????? | | ???????????????????????????# """ # ##?????? | +----------------------------------------------------+ Best States ------------- Heat Dissipation 25 Energy Generation 14 Energy Capacity 250 Matter Stores 300 Matter Capacity 300 Sight Range 16 Terrain Scan Density 10 Armor Coverage 300 Evasion (%) 53 Item Schematics ----------------- None Robot Schematics ------------------ None Fabricated ------------ Nothing Alien Tech Used ----------------- None Achievements -------------- Power Corrupts Challenges ------------ None Game ------ Seed LightBurstCompactor Manual? 0 Play Time 00:07:52 Cumulative 2.7 hours Start 2024.12.01 @ 16:36:58 End 2024.12.01 @ 16:42:59 Sessions 1 Manual Loads 0 Difficulty Rogue Special Mode None Game No. 5 Rogue 5 Adventurer 0 Explorer 0 Win Type - Total 0 Types 0/0/0/0/0/0/0/0/0 Lore% 2 Gallery% 7 Achievement% 9 Wizard Run 0 Options --------- Layout 1 ASCII 0 Keyboard 0 Movement Mouse Keybinds 0 Fullscreen 2 Font 32/Tamsyn Map View 50x35 Zoom Use 0% Tactical HUD 0 Map Filters NONE Filters NONE Steam 1 RUN: 5cf91ab4-328b-4e7a-b554-5279033b800a